fUST/lending_fUST_20250129
["ID","MTS","AMOUNT","RATE_DAILY","PERIOD"]
[350760181,1738110643067,-500.0,0.00016849,2]
[350760183,1738110643079,-500.0,0.00016849,2]
[350760185,1738110643091,-917.17,0.00016849,2]
[350760189,1738110643103,-890.04,0.00016849,2]
[350760193,1738110643115,-500.0,0.00016849,2]
[350760196,1738110643128,-1773.7,0.00016849,2]
[350760199,1738110643139,-500.0,0.00016849,2]
[350760201,1738110643151,-500.0,0.00016849,2]
[350760204,1738110643162,-952.36,0.00016849,2]
[350760206,1738110643174,-500.0,0.00016849,2]
[350760208,1738110643186,-500.0,0.00016849,2]
[350760210,1738110643197,-500.0,0.00016849,2]
[350760212,1738110643208,-500.0,0.00016849,2]
[350760214,1738110643220,-500.0,0.00016985,2]
[350760216,1738110643232,-500.0,0.00016986,2]
[350760232,1738110643387,-500.0,0.00016986,2]
[350760236,1738110643408,-500.0,0.00016986,2]
[350760238,1738110643418,-500.0,0.00016986,2]
[350760240,1738110643428,-500.0,0.00016986,2]
[350760241,1738110643437,-3696.51,0.00016986,2]
[350760243,1738110643447,-500.0,0.00016986,2]
[350760245,1738110643457,-500.0,0.00016986,2]
[350760247,1738110643467,-1432.27,0.00016986,2]
[350760249,1738110643477,-2551.59,0.00016986,2]
[350760251,1738110643487,-500.0,0.00016986,2]
[350760253,1738110643496,-3546.39,0.00016986,2]
[350760255,1738110643505,-811.74,0.00016986,2]
[350760257,1738110643515,-872.67,0.00016986,2]
[350760259,1738110643525,-500.0,0.00016986,2]
[350760261,1738110643535,-4557.93,0.00016986,2]
[350760263,1738110643544,-1025.43,0.00016986,2]
[350760265,1738110643553,-500.0,0.00016986,2]
[350760266,1738110643563,-500.0,0.00016986,2]
[350760268,1738110643573,-500.0,0.00016986,2]
[350760270,1738110643582,-500.0,0.00016986,2]
[350760272,1738110643592,-11041.99,0.00016986,2]
[350760274,1738110643602,-500.0,0.00016986,2]
[350760276,1738110643612,-500.0,0.00016986,2]
[350760278,1738110643621,-500.0,0.00016986,2]
[350760280,1738110643631,-917.17,0.00016986,2]
[350760282,1738110643641,-890.04,0.00016986,2]
[350760284,1738110643650,-500.0,0.00016986,2]
[350760286,1738110643659,-1773.7,0.00016986,2]
[350760288,1738110643669,-500.0,0.00016986,2]
[350760290,1738110643679,-500.0,0.00016986,2]
[350760292,1738110643688,-952.36,0.00016986,2]
[350760293,1738110643697,-500.0,0.00016986,2]
[350760295,1738110643707,-500.0,0.00016986,2]
[350760297,1738110643716,-500.0,0.00016986,2]
[350760299,1738110643726,-1800.0,0.0001699,2]
[350760301,1738110643735,-500.0,0.00017002,7]
[350760303,1738110643745,-359.61,0.00017002,7]
[350760305,1738110643755,-500.0,0.00017002,7]
[350760306,1738110643764,-478.21602761,0.00017106,2]
[350760308,1738110643773,-500.0,0.00017123,2]
[350760310,1738110643784,-500.0,0.00017123,2]
[350760312,1738110643793,-500.0,0.00017123,2]
[350760314,1738110643803,-500.0,0.00017123,2]
[350760316,1738110643812,-500.0,0.00017123,2]
[350760318,1738110643822,-3696.51,0.00017123,2]
[350760320,1738110643831,-500.0,0.00017123,2]
[350760322,1738110643840,-500.0,0.00017123,2]
[350760324,1738110643849,-1432.27,0.00017123,2]
[350760326,1738110643858,-2551.59,0.00017123,2]
[350760328,1738110643867,-500.0,0.00017123,2]
[350760329,1738110643876,-3546.39,0.00017123,2]
[350760331,1738110643886,-811.74,0.00017123,2]
[350760333,1738110643895,-872.67,0.00017123,2]
[350760335,1738110643905,-500.0,0.00017123,2]
[350760337,1738110643914,-4557.93,0.00017123,2]
[350760339,1738110643923,-1025.43,0.00017123,2]
[350760341,1738110643932,-500.0,0.00017123,2]
[350760343,1738110643941,-500.0,0.00017123,2]
[350760345,1738110643953,-500.0,0.00017123,2]
[350760347,1738110643965,-500.0,0.00017123,2]
[350760350,1738110643974,-11041.99,0.00017123,2]
[350760353,1738110643984,-500.0,0.00017123,2]
[350760356,1738110643993,-500.0,0.00017123,2]
[350760359,1738110644003,-500.0,0.00017123,2]
[350760362,1738110644012,-917.17,0.00017123,2]
[350760364,1738110644021,-890.04,0.00017123,2]
[350760368,1738110644035,-500.0,0.00017123,2]
[350760370,1738110644045,-1773.7,0.00017123,2]
[350760374,1738110644055,-500.0,0.00017123,2]
[350760376,1738110644064,-500.0,0.00017123,2]
[350760379,1738110644074,-952.36,0.00017123,2]
[350760382,1738110644083,-500.0,0.00017123,2]
[350760385,1738110644092,-500.0,0.00017123,2]
[350760387,1738110644102,-500.0,0.00017123,2]
[350760390,1738110644111,-1616.33309486,0.000172,2]
[350760393,1738110644121,-500.0,0.0001726,2]
[350760396,1738110644130,-500.0,0.0001726,2]
[350760399,1738110644140,-500.0,0.0001726,2]
[350760402,1738110644149,-500.0,0.0001726,2]
[350760405,1738110644158,-500.0,0.0001726,2]
[350760408,1738110644168,-3696.51,0.0001726,2]
[350760410,1738110644177,-500.0,0.0001726,2]
[350760412,1738110644187,-500.0,0.0001726,2]
[350760414,1738110644196,-1432.27,0.0001726,2]
[350760415,1738110644205,-2551.59,0.0001726,2]
[350760417,1738110644215,-500.0,0.0001726,2]
[350760419,1738110644224,-3546.39,0.0001726,2]
[350760421,1738110644234,-811.74,0.0001726,2]
[350760423,1738110644243,-872.67,0.0001726,2]
[350760425,1738110644253,-500.0,0.0001726,2]
[350760427,1738110644262,-4557.93,0.0001726,2]
[350760429,1738110644271,-1025.43,0.0001726,2]
[350760431,1738110644280,-500.0,0.0001726,2]
[350760433,1738110644290,-500.0,0.0001726,2]
[350760434,1738110644299,-500.0,0.0001726,2]
[350760436,1738110644308,-500.0,0.0001726,2]
[350760438,1738110644318,-11041.99,0.0001726,2]
[350760440,1738110644328,-500.0,0.0001726,2]
[350760441,1738110644337,-500.0,0.0001726,2]
[350760442,1738110644347,-500.0,0.0001726,2]
[350760443,1738110644356,-917.17,0.0001726,2]
[350760444,1738110644367,-890.04,0.0001726,2]
[350760445,1738110644377,-500.0,0.0001726,2]
[350760446,1738110644387,-1773.7,0.0001726,2]
[350760447,1738110644397,-500.0,0.0001726,2]
[350760448,1738110644407,-500.0,0.0001726,2]
[350760450,1738110644417,-952.36,0.0001726,2]
[350760452,1738110644426,-500.0,0.0001726,2]
[350760454,1738110644436,-500.0,0.0001726,2]
[350760456,1738110644445,-500.0,0.0001726,2]
[350760458,1738110644456,-500.0,0.00017277,2]
[350760460,1738110644465,-500.0,0.00017397,2]
[350760462,1738110644475,-500.0,0.00017397,2]
[350760464,1738110644485,-500.0,0.00017397,2]
[350760466,1738110644494,-500.0,0.00017397,2]
[350760468,1738110644504,-500.0,0.00017397,2]
[350760470,1738110644514,-3696.51,0.00017397,2]
[350760472,1738110644524,-500.0,0.00017397,2]
[350760474,1738110644534,-500.0,0.00017397,2]
[350760476,1738110644543,-1432.27,0.00017397,2]
[350760478,1738110644553,-2551.59,0.00017397,2]
[350760480,1738110644563,-500.0,0.00017397,2]
[350760482,1738110644572,-3546.39,0.00017397,2]
[350760484,1738110644581,-811.74,0.00017397,2]
[350760486,1738110644591,-872.67,0.00017397,2]
[350760488,1738110644600,-500.0,0.00017397,2]
[350760490,1738110644610,-4557.93,0.00017397,2]
[350760492,1738110644620,-1025.43,0.00017397,2]
[350760494,1738110644629,-500.0,0.00017397,2]
[350760496,1738110644639,-500.0,0.00017397,2]
[350760498,1738110644649,-500.0,0.00017397,2]
[350760500,1738110644659,-500.0,0.00017397,2]
[350760502,1738110644669,-11041.99,0.00017397,2]
[350760504,1738110644678,-500.0,0.00017397,2]
[350760506,1738110644688,-500.0,0.00017397,2]
[350760508,1738110644700,-500.0,0.00017397,2]
[350760510,1738110644710,-917.17,0.00017397,2]
[350760512,1738110644720,-890.04,0.00017397,2]
[350760515,1738110644730,-500.0,0.00017397,2]
[350760517,1738110644740,-1773.7,0.00017397,2]
[350760519,1738110644750,-500.0,0.00017397,2]
[350760521,1738110644760,-500.0,0.00017397,2]
[350760523,1738110644770,-952.36,0.00017397,2]
[350760525,1738110644780,-500.0,0.00017397,2]
[350760527,1738110644793,-500.0,0.00017397,2]
[350760529,1738110644803,-500.0,0.00017397,2]
[350760531,1738110644813,-299.0,0.0001741,2]
[350760533,1738110644823,-13245.59911628,0.00017495,2]
[350760535,1738110644833,-500.0,0.00017534,2]
[350760537,1738110644843,-500.0,0.00017534,2]
[350760539,1738110644853,-500.0,0.00017534,2]
[350760541,1738110644862,-500.0,0.00017534,2]
[350760543,1738110644872,-500.0,0.00017534,2]
[350760545,1738110644881,-3696.51,0.00017534,2]
[350760547,1738110644891,-500.0,0.00017534,2]
[350760549,1738110644901,-500.0,0.00017534,2]
[350760551,1738110644911,-1432.27,0.00017534,2]
[350760553,1738110644920,-2551.59,0.00017534,2]
[350760555,1738110644930,-500.0,0.00017534,2]
[350760558,1738110644939,-3546.39,0.00017534,2]
[350760560,1738110644951,-811.74,0.00017534,2]
[350760562,1738110644963,-872.67,0.00017534,2]
[350760564,1738110644974,-500.0,0.00017534,2]
[350760566,1738110644983,-4557.93,0.00017534,2]
[350760568,1738110644995,-1025.43,0.00017534,2]
[350760570,1738110645004,-500.0,0.00017534,2]
[350760572,1738110645014,-171.63785368,0.00017534,2]
[350760574,1738110645024,-500.0,0.00017534,2]
[350760576,1738110645036,-500.0,0.00017534,2]
[350760578,1738110645045,-11041.99,0.00017534,2]
[350760580,1738110645055,-500.0,0.00017534,2]
[350760582,1738110645065,-500.0,0.00017534,2]
[350760584,1738110645074,-500.0,0.00017534,2]
[350760586,1738110645083,-917.17,0.00017534,2]
[350760588,1738110645093,-890.04,0.00017534,2]
[350760590,1738110645103,-500.0,0.00017534,2]
[350760592,1738110645112,-1773.7,0.00017534,2]
[350760594,1738110645122,-500.0,0.00017534,2]
[350760596,1738110645131,-500.0,0.00017534,2]
[350760598,1738110645141,-952.36,0.00017534,2]
[350760600,1738110645150,-500.0,0.00017534,2]
[350760602,1738110645160,-500.0,0.00017534,2]
[350760604,1738110645170,-500.0,0.00017534,2]
[350760606,1738110645180,-700.0,0.00017564,2]
[350760608,1738110645189,-158.0,0.00017565,2]
[350760610,1738110645199,-1323.32,0.000176,2]
[350760612,1738110645208,-500.0,0.000176,2]
[350760614,1738110645218,-967.551,0.00017621,2]
[350760616,1738110645228,-214.0,0.00017622,2]
[350760618,1738110645237,-214.0,0.00017622,2]
[350760620,1738110645247,-154.0,0.00017622,2]
[350760622,1738110645257,-154.0,0.00017622,2]
[350760624,1738110645266,-154.0,0.00017622,2]
[350760626,1738110645276,-154.0,0.00017622,2]
[350760628,1738110645286,-154.0,0.00017622,2]
[350760630,1738110645295,-154.0,0.00017622,2]
[350760632,1738110645304,-154.0,0.00017622,2]
[350760635,1738110645314,-154.0,0.00017622,2]
[350760637,1738110645324,-154.0,0.00017622,2]
[350760639,1738110645333,-154.0,0.00017622,2]
[350760641,1738110645343,-154.0,0.00017622,2]
[350760643,1738110645352,-154.0,0.00017622,2]
[350760645,1738110645362,-154.0,0.00017622,2]
[350760647,1738110645371,-155.58,0.00017622,2]
[350760649,1738110645381,-4966.62504758,0.00017643,2]
[350760651,1738110645390,-151.0,0.0001767,2]
[350760653,1738110645400,-500.0,0.00017671,2]
[350760655,1738110645410,-500.0,0.00017671,2]
[350760657,1738110645419,-500.0,0.00017671,2]
[350760659,1738110645429,-500.0,0.00017671,2]
[350760661,1738110645439,-500.0,0.00017671,2]
[350760663,1738110645449,-3696.51,0.00017671,2]
[350760665,1738110645458,-500.0,0.00017671,2]
[350760667,1738110645467,-500.0,0.00017671,2]
[350760669,1738110645477,-1432.27,0.00017671,2]
[350760672,1738110645487,-2551.59,0.00017671,2]
[350760674,1738110645496,-500.0,0.00017671,2]
[350760676,1738110645507,-3546.39,0.00017671,2]
[350760678,1738110645517,-811.74,0.00017671,2]
[350760680,1738110645527,-872.67,0.00017671,2]
[350760684,1738110645536,-500.0,0.00017671,2]
[350760688,1738110645546,-4557.93,0.00017671,2]
[350760691,1738110645556,-1025.43,0.00017671,2]
[350760693,1738110645565,-500.0,0.00017671,2]
[350760695,1738110645575,-199.68,0.00017671,2]
[350760698,1738110645584,-214.62564828,0.00017671,2]
[350760701,1738110645594,-500.0,0.00017671,2]
[350760703,1738110645603,-164.40838595,0.00017671,2]
[350760705,1738110645613,-500.0,0.00017671,2]
[350760707,1738110645622,-11041.99,0.00017671,2]
[350760709,1738110645632,-500.0,0.00017671,2]
[350760711,1738110645642,-500.0,0.00017671,2]
[350760713,1738110645653,-500.0,0.00017671,2]
[350760715,1738110645662,-500.0,0.00017671,2]
[350760717,1738110645672,-917.17,0.00017671,2]
[350760719,1738110645682,-890.04,0.00017671,2]
[350760721,1738110645691,-500.0,0.00017671,2]
[350760723,1738110645701,-1773.7,0.00017671,2]
[350760725,1738110645711,-500.0,0.00017671,2]
[350760727,1738110645720,-500.0,0.00017671,2]
[350760729,1738110645730,-952.36,0.00017671,2]
[350760731,1738110645740,-500.0,0.00017671,2]
[350760733,1738110645749,-150.11,0.00017671,2]
[350760735,1738110645759,-500.0,0.00017671,2]
[350760737,1738110645769,-500.0,0.00017671,2]
[350760739,1738110645778,-500.0,0.00017671,2]
[350760741,1738110645787,-500.0,0.00017673,2]
[350760743,1738110645797,-504.65226578,0.00017673,2]
[350760745,1738110645806,-500.0,0.00017673,2]
[350760747,1738110645816,-500.60598341,0.00017673,2]
[350760749,1738110645827,-500.0,0.00017673,2]
[350760751,1738110645836,-150.0,0.00017685,2]
[350760765,1738110645969,-77269.46798903,0.000177,2]
[350760767,1738110645980,-500.0,0.000177,2]
[350760769,1738110645991,-151.0,0.000177,2]
[350760771,1738110646001,-254.540223,0.000177,2]
[350760773,1738110646011,-254.540223,0.000177,2]
[350760776,1738110646022,-211.358544,0.000177,2]
[350760778,1738110646035,-211.358544,0.000177,2]
[350760779,1738110646047,-621.0,0.000177,2]
[350760781,1738110646057,-172.51,0.00017705,2]
[350760783,1738110646067,-158.0,0.00017705,2]
[350760786,1738110646077,-158.0,0.00017705,2]
[350760787,1738110646088,-158.0,0.00017705,2]
[350760789,1738110646098,-158.0,0.00017705,2]
[350760791,1738110646107,-228.37,0.00017705,2]
[350760794,1738110646117,-150.0,0.0001774,2]
[350760796,1738110646127,-158.0,0.00017776,2]
[350760797,1738110646138,-158.0,0.00017776,2]
[350760799,1738110646148,-158.0,0.00017776,2]
[350760801,1738110646158,-158.0,0.00017776,2]
[350760803,1738110646168,-158.0,0.00017776,2]
[350760805,1738110646177,-158.0,0.00017776,2]
[350760807,1738110646186,-158.0,0.00017776,2]
[350760809,1738110646195,-158.0,0.00017776,2]
[350760811,1738110646205,-166.8,0.00017776,2]
[350760813,1738110646214,-151.0,0.00017808,2]
[350760815,1738110646224,-151.0,0.00017808,2]
[350760817,1738110646233,-151.0,0.00017808,2]
[350760819,1738110646243,-151.0,0.00017808,2]
[350760821,1738110646252,-500.0,0.00017808,2]
[350760823,1738110646262,-348.76555623,0.00017808,2]
[350760825,1738110646271,-500.0,0.00017808,2]
[350760827,1738110646280,-151.0,0.00017808,2]
[350760829,1738110646291,-500.0,0.00017808,2]
[350760831,1738110646300,-500.0,0.00017808,2]
[350760833,1738110646309,-264.525609,0.00017808,2]
[350760835,1738110646319,-3696.51,0.00017808,2]
[350760837,1738110646329,-500.0,0.00017808,2]
[350760839,1738110646339,-500.0,0.00017808,2]
[350760841,1738110646348,-1432.27,0.00017808,2]
[350760843,1738110646357,-2551.59,0.00017808,2]
[350760845,1738110646367,-500.0,0.00017808,2]
[350760847,1738110646377,-3546.39,0.00017808,2]
[350760849,1738110646388,-811.74,0.00017808,2]
[350760851,1738110646397,-872.67,0.00017808,2]
[350760852,1738110646407,-500.0,0.00017808,2]
[350760854,1738110646417,-4557.93,0.00017808,2]
[350760856,1738110646426,-1025.43,0.00017808,2]
[350760858,1738110646436,-500.0,0.00017808,2]
[350760860,1738110646445,-500.0,0.00017808,2]
[350760862,1738110646455,-500.0,0.00017808,2]
[350760864,1738110646465,-11041.99,0.00017808,2]
[350760866,1738110646475,-459.84058065,0.00017808,2]
[350760868,1738110646484,-500.0,0.00017808,2]
[350760870,1738110646494,-500.0,0.00017808,2]
[350760872,1738110646504,-917.17,0.00017808,2]
[350760874,1738110646514,-890.04,0.00017808,2]
[350760876,1738110646524,-500.0,0.00017808,2]
[350760878,1738110646533,-1773.7,0.00017808,2]
[350760880,1738110646544,-500.0,0.00017808,2]
[350760882,1738110646554,-500.0,0.00017808,2]
[350760884,1738110646563,-952.36,0.00017808,2]
[350760886,1738110646572,-616.38,0.00017808,2]
[350760888,1738110646581,-500.0,0.00017808,2]
[350760890,1738110646591,-500.0,0.00017808,2]
[350760892,1738110646600,-306.0,0.00017808,2]
[350760893,1738110646609,-150.309,0.00017808,2]
[350760895,1738110646619,-150.0,0.00017808,2]
[350760897,1738110646628,-298.57,0.00017808,2]
[350760899,1738110646638,-151.0,0.00017823,2]
[350760901,1738110646647,-1000.0,0.00017825,2]
[350760903,1738110646657,-154.3274537,0.00017836,2]
[350760905,1738110646666,-215.4605405,0.00017836,2]
[350760907,1738110646676,-154.3274537,0.00017836,2]
[350760909,1738110646685,-154.3274537,0.00017836,2]
[350760911,1738110646694,-153.4611943,0.00017836,2]
[350760913,1738110646703,-330.4582923,0.00017836,2]
[350760915,1738110646712,-215.4605405,0.00017836,2]
[350760917,1738110646722,-170.1486433,0.00017836,2]
[350760918,1738110646731,-13048.13642416,0.000179,2]
[350760920,1738110646741,-1747.5103676,0.000179,2]
[350760922,1738110646751,-1747.51036759,0.000179,2]
[350760924,1738110646760,-1747.51036759,0.000179,2]
[350760926,1738110646769,-1747.51036759,0.000179,2]
[350760928,1738110646778,-150.0,0.00017902,2]
[350760932,1738110646802,-538.316,0.00017902,2]
[350760934,1738110646813,-2043.0,0.00017902,2]
[350760936,1738110646823,-2445.098,0.00017902,2]
[350760938,1738110646833,-395.0,0.00017902,2]
[350760940,1738110646844,-500.0,0.00017945,2]
[350760942,1738110646855,-500.0,0.00017945,2]
[350760944,1738110646865,-500.0,0.00017945,2]
[350760946,1738110646876,-626.0,0.00017945,2]
[350760948,1738110646887,-631.314264,0.00017945,2]
[350760950,1738110646897,-500.0,0.00017945,2]
[350760952,1738110646907,-3696.51,0.00017945,2]
[350760954,1738110646918,-500.0,0.00017945,2]
[350760956,1738110646928,-500.0,0.00017945,2]
[350760958,1738110646938,-1432.27,0.00017945,2]
[350760960,1738110646948,-2551.59,0.00017945,2]
[350760962,1738110646963,-500.0,0.00017945,2]
[350760964,1738110646974,-3546.39,0.00017945,2]
[350760966,1738110646984,-811.74,0.00017945,2]
[350760968,1738110646994,-872.67,0.00017945,2]
[350760970,1738110647005,-500.0,0.00017945,2]
[350760972,1738110647015,-4557.93,0.00017945,2]
[350760974,1738110647026,-1025.43,0.00017945,2]
[350760976,1738110647039,-500.0,0.00017945,2]
[350760978,1738110647048,-500.0,0.00017945,2]
[350760980,1738110647058,-500.0,0.00017945,2]
[350760982,1738110647068,-11041.99,0.00017945,2]
[350760984,1738110647079,-500.0,0.00017945,2]
[350760986,1738110647089,-500.0,0.00017945,2]
[350760988,1738110647099,-917.17,0.00017945,2]
[350760991,1738110647111,-890.04,0.00017945,2]
[350760993,1738110647123,-500.0,0.00017945,2]
[350760995,1738110647133,-1773.7,0.00017945,2]
[350760997,1738110647144,-500.0,0.00017945,2]
[350760999,1738110647154,-500.0,0.00017945,2]
[350761001,1738110647164,-952.36,0.00017945,2]
[350761003,1738110647175,-500.0,0.00017945,2]
[350761005,1738110647185,-500.0,0.00017945,2]
[350761007,1738110647195,-465.66080138,0.00017961,2]
[350761009,1738110647205,-175.61772484,0.00017973,2]
[350761011,1738110647215,-162.0,0.00017984,2]
[350761013,1738110647224,-162.0,0.00017984,2]
[350761014,1738110647235,-162.0,0.00017984,2]
[350761016,1738110647245,-165.99,0.00017984,2]
[350761018,1738110647255,-151.01,0.00017984,2]
[350761020,1738110647267,-294.96,0.00018,2]
[350761023,1738110647277,-294.96,0.00018,2]
[350761024,1738110647287,-294.96,0.00018,2]
[350761026,1738110647298,-1554.2534,0.00018,2]
[350761028,1738110647308,-151.32,0.00018002,2]
[350761030,1738110647318,-151.32,0.00018002,2]
[350761032,1738110647328,-151.32,0.00018002,2]
[350761034,1738110647339,-151.32,0.00018002,2]
[350761036,1738110647349,-151.34472297,0.00018002,2]
[350761038,1738110647358,-500.0,0.00018082,2]
[350761040,1738110647369,-430.0,0.00018082,2]
[350761042,1738110647379,-3696.51,0.00018082,2]
[350761044,1738110647389,-500.0,0.00018082,2]
[350761046,1738110647400,-500.0,0.00018082,2]
[350761048,1738110647411,-151.0,0.00018082,2]
[350761051,1738110647421,-1432.27,0.00018082,2]
[350761053,1738110647431,-2551.59,0.00018082,2]
[350761055,1738110647442,-500.0,0.00018082,2]
[350761057,1738110647451,-254.540223,0.00018082,2]
[350761059,1738110647462,-254.540223,0.00018082,2]
[350761061,1738110647472,-3546.39,0.00018082,2]
[350761063,1738110647482,-811.74,0.00018082,2]
[350761065,1738110647493,-211.358544,0.00018082,2]
[350761067,1738110647503,-211.358544,0.00018082,2]
[350761069,1738110647512,-872.67,0.00018082,2]
[350761071,1738110647522,-500.0,0.00018082,2]
[350761073,1738110647532,-4557.93,0.00018082,2]
[350761075,1738110647542,-1025.43,0.00018082,2]
[350761077,1738110647551,-500.0,0.00018082,2]
[350761079,1738110647561,-500.0,0.00018082,2]
[350761081,1738110647571,-500.0,0.00018082,2]
[350761083,1738110647581,-11041.99,0.00018082,2]
[350761084,1738110647591,-500.0,0.00018082,2]
[350761086,1738110647601,-500.0,0.00018082,2]
[350761088,1738110647611,-917.17,0.00018082,2]
[350761090,1738110647622,-890.04,0.00018082,2]
[350761093,1738110647637,-500.0,0.00018082,2]
[350761095,1738110647646,-1773.7,0.00018082,2]
[350761097,1738110647657,-500.0,0.00018082,2]
[350761099,1738110647668,-515.13,0.00018082,2]
[350761101,1738110647678,-952.36,0.00018082,2]
[350761103,1738110647689,-500.0,0.00018082,2]
[350761105,1738110647699,-500.0,0.00018082,2]
[350761107,1738110647709,-11537.97,0.000181,2]
[350761109,1738110647721,-151.0,0.00018103,3]
[350761110,1738110647730,-158.0,0.00018108,2]
[350761112,1738110647740,-158.0,0.00018108,2]
[350761114,1738110647750,-158.0,0.00018108,2]
[350761116,1738110647760,-253.41,0.00018108,2]
[350761118,1738110647770,-151.0,0.00018108,2]
[350761120,1738110647779,-157.0,0.0001811,2]
[350761123,1738110647792,-157.0,0.0001811,2]
[350761125,1738110647802,-157.0,0.0001811,2]
[350761126,1738110647812,-157.0,0.0001811,2]
[350761129,1738110647823,-157.0,0.0001811,2]
[350761131,1738110647834,-157.0,0.0001811,2]
[350761132,1738110647845,-157.0,0.0001811,2]
[350761135,1738110647857,-157.0,0.0001811,2]
[350761137,1738110647868,-157.0,0.0001811,2]
[350761139,1738110647879,-157.0,0.0001811,2]
[350761141,1738110647890,-157.0,0.0001811,2]
[350761143,1738110647900,-157.0,0.0001811,2]
[350761145,1738110647910,-164.0,0.0001811,2]
[350761147,1738110647919,-500.0,0.00018219,2]
[350761148,1738110647929,-500.0,0.00018219,2]
[350761150,1738110647938,-151.0,0.00018219,2]
[350761152,1738110647949,-200.309777,0.00018219,2]
[350761154,1738110647963,-500.0,0.00018219,2]
[350761156,1738110647973,-264.525609,0.00018219,2]
[350761158,1738110647984,-3696.51,0.00018219,2]
[350761160,1738110647995,-500.0,0.00018219,2]
[350761162,1738110648006,-500.0,0.00018219,2]
[350761164,1738110648016,-1432.27,0.00018219,2]
[350761166,1738110648026,-2551.59,0.00018219,2]
[350761168,1738110648040,-500.0,0.00018219,2]
[350761170,1738110648051,-3546.39,0.00018219,2]
[350761172,1738110648062,-811.74,0.00018219,2]
[350761174,1738110648072,-872.67,0.00018219,2]
[350761176,1738110648084,-500.0,0.00018219,2]
[350761178,1738110648094,-4557.93,0.00018219,2]
[350761180,1738110648105,-1025.43,0.00018219,2]
[350761182,1738110648114,-500.0,0.00018219,2]
[350761184,1738110648124,-500.0,0.00018219,2]
[350761186,1738110648135,-500.0,0.00018219,2]
[350761188,1738110648145,-11041.99,0.00018219,2]
[350761190,1738110648155,-500.0,0.00018219,2]
[350761191,1738110648165,-500.0,0.00018219,2]
[350761194,1738110648177,-917.17,0.00018219,2]
[350761195,1738110648187,-890.04,0.00018219,2]
[350761197,1738110648197,-500.0,0.00018219,2]
[350761199,1738110648207,-1773.7,0.00018219,2]
[350761201,1738110648217,-500.0,0.00018219,2]
[350761203,1738110648226,-952.36,0.00018219,2]
[350761205,1738110648236,-500.0,0.00018219,2]
[350761207,1738110648246,-500.0,0.00018219,2]
[350761209,1738110648256,-175.61772484,0.00018219,2]
[350761211,1738110648267,-8883.43,0.000183,2]
[350761213,1738110648278,-391.27452614,0.00018326,2]
[350761215,1738110648291,-500.0,0.00018356,2]
[350761217,1738110648302,-3696.51,0.00018356,2]
[350761219,1738110648313,-500.0,0.00018356,2]
[350761221,1738110648324,-500.0,0.00018356,2]
[350761222,1738110648335,-1432.27,0.00018356,2]
[350761225,1738110648470,-2551.59,0.00018356,2]
[350761226,1738110648483,-500.0,0.00018356,2]